bitfinex/quotes_ETHUSD_20241124
["timestamp","ask_amount","ask_price","bid_price","bid_amount"]
[1732465834681,3.01528,3316.5,3315.7,2.11112]
[1732465835014,0.777,3316.6,3316.0,2.11096]
[1732465835216,0.777,3316.6,3316.0,2.322056]
[1732465835421,3.79214,3316.6,3316.0,2.11096]
[1732465835623,3.01524,3316.5,3315.8,2.11108]
[1732465835922,3.01533,3316.4,3315.8,2.11108]
[1732465836230,3.01586,3315.8,3315.1,2.11152]
[1732465836517,3.01577,3315.9,3315.2,2.14159862]
[1732465836733,3.01567,3316.1,3315.4,2.11132]
[1732465836878,3.01585,3315.9,3315.2,2.35277062]
[1732465837080,3.01588,3315.8,3315.2,2.11146]
[1732465837322,3.01598,3315.7,3315.1,0.301]
[1732465837627,3.01605,3315.6,3315.1,0.301]
[1732465838178,2.26796527,3316.2,3314.8,0.7733]
[1732465838380,3.01632,3315.3,3314.8,0.7733]
[1732465839383,3.61160402,3315.4,3314.8,0.7733]
[1732465839533,3.01595,3315.7,3315.0,2.11157]
[1732465840138,3.01595,3315.7,3315.1,2.11153]
[1732465840636,3.01551,3316.2,3315.3,2.11136]
[1732465840872,3.01551,3316.2,3315.5,2.11125]
[1732465841072,3.4421803,3316.4,3315.7,2.11112]
[1732465841232,3.01522,3316.5,3315.9,2.111]
[1732465841442,3.01537,3316.4,3315.8,2.11109]
[1732465841635,3.79217,3316.6,3315.9,0.03015452]
[1732465842089,3.01529,3316.5,3315.9,2.11102]
[1732465842249,3.79217,3316.6,3315.9,0.0301545]
[1732465842444,3.01532,3316.4,3315.8,2.11109]
[1732465842749,6.03051,3316.5,3315.7,2.11111]
[1732465843054,3.01532,3316.4,3315.8,2.11109]
[1732465843550,3.61734338,3316.5,3315.8,2.11107]
[1732465843773,4.28058472,3316.5,3315.8,2.11107]
[1732465843970,3.61734338,3316.5,3315.8,2.11107]
[1732465844172,3.61734338,3316.5,3315.9,2.11103]
[1732465845088,3.01567,3316.1,3314.9,2.11165]
[1732465845298,3.01567,3316.1,3315.5,5.11126]
[1732465845449,0.60210338,3316.5,3315.8,4.22216]
[1732465845450,3.61735338,3316.5,3315.8,4.22216]
[1732465845645,3.61735338,3316.5,3315.8,2.11106]
[1732465845865,3.61735338,3316.5,3315.9,2.11102]
[1732465846089,3.61735338,3316.5,3315.8,2.11106]
[1732465846289,3.01546,3316.3,3315.4,5.11134]
[1732465846598,3.01564,3316.1,3315.5,2.11129]
[1732465846954,3.01583,3315.9,3315.1,2.322687]
[1732465847199,6.03127,3316.1,3315.3,2.11137]
[1732465847370,3.0157,3316.0,3315.4,0.211137]
[1732465847573,3.0157,3316.0,3315.5,2.11128]
[1732465848052,0.60210338,3316.5,3315.5,0.03016117]
[1732465848257,0.28700687,3316.4,3315.9,2.11099]
[1732465848451,3.61740338,3316.5,3316.2,2.1108]
[1732465848452,0.60210338,3316.5,3316.2,2.1108]
[1732465848684,0.60210338,3316.5,3316.3,2.11078]
[1732465848868,0.60210338,3316.5,3315.6,0.03015571]
[1732465849078,0.60210338,3316.5,3315.9,2.11099]
[1732465849506,3.61738338,3316.5,3315.9,2.11099]
[1732465849705,0.60210338,3316.5,3316.1,2.1109]
[1732465849905,0.60210338,3316.5,3315.9,2.11099]
[1732465850323,0.60210338,3316.5,3316.1,2.11087]
[1732465851314,3.61734338,3316.5,3316.0,2.11097]
[1732465851619,3.0155,3316.2,3315.2,0.03015475]
[1732465851823,3.0157,3316.0,3315.4,2.11134]
[1732465852239,3.0157,3316.0,3314.9,2.11167]
[1732465852433,3.0157,3316.0,3315.4,2.1113]
[1732465852720,3.0157,3316.0,3315.2,2.11145]
[1732465853062,2.26796527,3316.2,3315.1,2.11154]
[1732465853191,3.01593,3315.8,3315.2,2.11146]
[1732465853380,3.01593,3315.8,3315.2,5.11146]
[1732465853585,3.01595,3315.7,3315.2,5.11146]
[1732465854083,3.01595,3315.7,3315.2,2.11146]
[1732465854305,3.01595,3315.7,3315.0,2.11159]
[1732465854512,3.01605,3315.6,3315.0,4.22315]
[1732465854713,3.01598,3315.7,3315.1,2.1115]
[1732465854918,3.01598,3315.7,3315.1,5.1115]
[1732465855381,3.01598,3315.7,3315.1,2.1115]
[1732465856127,3.01598,3315.7,3315.2,2.11147]
[1732465856493,0.35441515,3315.9,3315.3,2.1114]
[1732465856694,3.01588,3315.8,3314.7,2.11178]
[1732465856914,3.01588,3315.8,3315.1,2.11149]
[1732465856915,3.01592,3315.8,3315.1,2.11149]
[1732465857299,3.01608,3315.6,3315.1,2.11149]
[1732465857495,0.58867978,3316.1,3315.6,2.11122]
[1732465857737,0.58867978,3316.1,3315.5,2.11129]
[1732465857934,0.58867978,3316.1,3315.6,2.11122]
[1732465858237,0.58867978,3316.1,3315.8,2.11108]
[1732465858443,3.0149,3316.9,3315.2,0.03015658]
[1732465858643,3.0149,3316.9,3315.4,3.0]
[1732465858935,0.30149,3316.8,3316.3,2.11076]
[1732465859239,3.31646,3316.8,3316.3,2.11076]
[1732465859835,0.59934229,3316.5,3316.1,2.11089]
[1732465860569,0.59934229,3316.5,3315.6,3.0]
[1732465860694,0.59934229,3316.5,3316.1,2.11085]
[1732465860900,0.59934229,3316.5,3316.2,2.11084]
[1732465861437,0.59934229,3316.5,3316.1,0.8234]
[1732465862032,1.37583112,3316.5,3315.9,2.111]
[1732465862241,3.01546,3316.3,3315.7,2.11114]
[1732465862417,3.7868,3316.4,3315.8,2.11108]
[1732465862618,0.7714,3316.4,3315.9,2.11103]
[1732465862853,4.22539423,3316.4,3315.7,4.22226]
[1732465863162,1.21001423,3316.4,3315.9,2.11103]
[1732465863452,1.21001423,3316.4,3315.7,4.22227]
[1732465863663,1.21001423,3316.4,3315.7,4.22223]
[1732465863664,3.0154,3316.3,3315.7,4.22223]
[1732465863812,3.01564,3316.1,3315.5,2.11125]
[1732465864007,3.01564,3316.1,3315.6,2.11123]
[1732465864261,0.18093565,3316.3,3315.0,3.0]
[1732465864262,3.01589,3315.8,3315.3,5.11137]
[1732465864442,3.01589,3315.8,3315.2,2.11146]
[1732465864644,3.78725,3315.9,3315.2,2.11146]
[1732465864815,0.378725,3315.8,3315.3,2.11141]
[1732465865010,0.378725,3315.8,3315.3,5.11141]
[1732465865468,3.394635,3315.8,3315.0,5.11158]
[1732465865669,3.394635,3315.8,3315.2,4.22289]
[1732465865850,3.394635,3315.8,3315.2,2.11143]
[1732465866162,3.394635,3315.8,3315.2,2.11142]
[1732465866363,3.394635,3315.8,3315.3,2.11141]
[1732465866743,3.4325735,3315.7,3314.9,2.88755]
[1732465866950,1.0225838,3315.7,3315.3,2.1114]
[1732465867261,1.0225838,3315.7,3315.1,4.223]
[1732465867454,1.0225838,3315.7,3315.0,3.0]
[1732465867455,4.0385538,3315.7,3315.2,2.11148]
[1732465867659,0.8181,3315.5,3315.0,5.11159]
[1732465867881,3.83424,3315.5,3314.8,2.11174]
[1732465868124,3.01634,3315.3,3314.7,3.0]
[1732465868575,0.42380954,3315.4,3314.7,3.0]
[1732465868778,3.01639,3315.3,3314.7,5.11178]
[1732465868932,3.01641,3315.2,3314.7,5.11178]
[1732465869748,3.01641,3315.2,3314.6,0.8181]
[1732465870028,0.8181,3315.5,3314.6,0.8181]
[1732465870029,3.612544,3315.1,3314.6,0.8181]
[1732465870270,0.8181,3315.0,3314.4,2.11199]
[1732465870470,0.8181,3315.0,3314.4,3.0]
[1732465870638,3.01668,3314.9,3314.4,5.11196]
[1732465870837,0.8181,3315.0,3314.4,5.11196]
[1732465871029,3.83472,3315.0,3314.4,5.11196]
[1732465871233,0.55,3314.9,3314.4,5.11196]
[1732465871434,0.8181,3314.5,3314.0,0.8181]
[1732465871666,0.55,3314.4,3314.0,2.93031]
[1732465871997,0.55,3314.4,3313.8,5.04278]
[1732465872273,3.01713,3314.4,3313.8,2.93042]
[1732465872647,3.01724,3314.3,3313.8,0.8181]
[1732465872975,1.201621,3314.5,3313.9,2.1123]
[1732465873147,3.8352,3314.5,3313.7,2.11242]
[1732465873486,3.01728,3314.3,3313.7,2.11242]
[1732465873779,0.8181,3314.2,3313.4,0.8181]
[1732465873932,0.8181,3314.2,3313.8,2.11236]
[1732465874136,2.26796527,3316.0,3313.8,2.11236]
[1732465874137,0.8181,3314.9,3314.6,2.11184]
[1732465874436,0.8181,3315.4,3314.9,2.11162]
[1732465874757,1.43404246,3315.7,3315.3,2.11138]
[1732465874934,0.61594246,3315.7,3315.4,2.11135]
[1732465875135,3.01492,3316.9,3316.1,2.11086]
[1732465875335,3.01504,3316.7,3315.9,2.11099]
[1732465875683,3.83329,3316.6,3315.9,2.11099]
[1732465875853,3.01541,3316.3,3315.8,0.8181]
[1732465876185,0.8181,3316.1,3315.2,2.11143]
[1732465876340,0.8181,3315.5,3314.9,2.11166]
[1732465876743,3.01623,3315.4,3314.7,2.11175]
[1732465877146,3.0165,3315.1,3314.5,2.93002]
[1732465877439,3.01649,3315.2,3314.6,2.11184]
[1732465877674,3.56622,3315.4,3314.6,2.11184]
[1732465877675,3.56622,3315.4,3314.8,2.11173]
[1732465877876,1.3681,3315.2,3314.2,0.8181]
[1732465878178,3.01686,3314.8,3314.1,2.11217]
[1732465878339,3.01686,3314.8,3314.1,2.616426]
[1732465878689,0.55,3314.6,3313.9,2.93037]
[1732465878840,0.55,3314.6,3314.1,2.11213]
[1732465879282,0.60361214,3314.9,3314.6,2.11186]
[1732465879642,0.60361214,3314.9,3314.6,2.11184]
[1732465879952,0.60361214,3314.9,3314.4,2.11198]
[1732465879953,0.60361214,3314.9,3314.4,2.11194]
[1732465880148,0.55,3314.7,3314.0,5.11222]
[1732465880346,3.83511,3314.6,3314.0,2.11222]
[1732465880680,3.01719,3314.4,3313.8,2.11235]
[1732465880877,3.01725,3314.3,3313.7,2.11243]
[1732465881177,3.01719,3314.4,3313.8,2.11236]
[1732465881675,0.55,3314.5,3314.0,2.11223]
[1732465881876,3.56713,3314.5,3313.8,2.11236]
[1732465882178,3.56706,3314.5,3313.8,2.11236]
[1732465882347,0.55,3314.5,3313.8,0.593046]
[1732465882553,0.8181,3314.6,3314.1,2.11214]
[1732465882879,0.8181,3314.6,3313.6,0.8181]
[1732465882880,3.01737,3314.2,3313.6,2.11245]
[1732465883034,1.078637,3314.1,3313.6,2.11245]
[1732465883238,0.7769,3314.1,3313.6,2.11245]
[1732465883764,0.7769,3314.1,3313.4,2.11258]
[1732465883966,0.7769,3314.1,3313.5,2.11256]
[1732465884136,0.7769,3314.1,3313.7,2.11242]
[1732465884342,0.7769,3314.1,3313.8,2.11233]
[1732465884767,0.772,3314.8,3314.2,2.11209]
[1732465884936,0.772,3314.8,3314.3,2.11205]
[1732465885263,0.772,3314.8,3314.2,2.11209]
[1732465885473,0.60423124,3314.4,3314.2,2.11209]
[1732465885773,0.60423124,3314.4,3314.2,2.11207]
[1732465885988,0.60423124,3314.4,3314.3,2.11205]
[1732465886783,0.772,3314.8,3314.5,2.11187]
[1732465886983,0.772,3315.5,3314.7,2.1118]
[1732465887191,3.7882,3315.5,3314.7,2.1118]
[1732465888289,3.01632,3315.3,3314.7,2.1118]
[1732465888451,3.01623,3315.4,3314.7,4.22354]
[1732465888648,0.55,3315.3,3314.7,2.11174]
[1732465888884,3.56639,3315.3,3314.5,2.11191]
[1732465889062,3.39505,3315.4,3314.3,2.112]
[1732465889063,0.55,3314.9,3314.3,2.112]
[1732465889391,0.7704,3314.6,3314.2,2.11211]
[1732465889747,0.7704,3314.6,3314.1,2.11218]
[1732465890148,1.20989863,3314.6,3314.1,2.11218]
[1732465890360,0.55,3314.5,3313.9,2.1123]
[1732465890601,0.55,3314.5,3314.0,2.11223]
[1732465890883,1.02768686,3314.5,3313.9,2.11228]
[1732465891191,0.55,3314.5,3313.7,3.0]
[1732465891391,0.60773629,3314.8,3314.7,2.1118]
[1732465891609,0.55,3315.1,3315.0,2.11161]
[1732465892091,1.14611045,3315.1,3315.0,2.11161]
[1732465892251,1.14611045,3315.1,3314.9,4.22327]
[1732465892453,1.14611045,3315.1,3315.0,2.11161]
[1732465892678,1.14611045,3315.1,3314.7,2.11178]
[1732465892862,1.14611045,3315.1,3314.8,2.11169]
[1732465893095,1.14611045,3315.1,3314.6,2.11186]
[1732465893265,0.7704,3314.9,3314.6,2.11186]
[1732465893851,0.7704,3314.9,3314.4,4.22392]
[1732465894051,0.7704,3314.9,3314.5,2.11192]
[1732465894392,1.28286815,3314.9,3314.4,2.11194]
[1732465894577,1.28286815,3314.9,3314.0,2.1122]
[1732465894895,3.01706,3314.5,3313.8,2.11233]
[1732465895052,3.78754,3314.4,3313.8,2.11234]
[1732465895257,0.378754,3314.3,3313.8,2.11234]
[1732465895479,0.378754,3314.3,3314.0,2.11224]
[1732465895683,3.78755,3314.4,3313.8,2.11234]
[1732465895995,0.7704,3314.2,3313.6,2.11246]
[1732465896197,3.01741,3314.1,3313.6,2.11246]
[1732465896690,0.7704,3314.2,3313.6,4.22491]
[1732465896895,0.378769,3314.1,3313.7,2.11243]
[1732465897459,0.378769,3314.1,3313.5,5.11251]
[1732465897658,3.01757,3314.0,3313.4,2.1126]
[1732465897855,0.4166489,3314.0,3313.2,2.11276]
[1732465898130,0.7704,3314.2,3313.1,0.7619]
[1732465898293,3.01741,3314.1,3313.2,2.11276]
[1732465898485,3.01741,3314.1,3313.4,2.11259]
[1732465898757,3.01741,3314.1,3312.5,2.4142]
[1732465898758,0.7704,3313.3,3312.7,2.11302]
[1732465899069,0.7704,3313.3,3313.2,2.11276]
[1732465899254,0.7704,3313.3,3312.6,2.14332372]
[1732465899611,4.167441,3313.3,3312.4,2.11322]
[1732465899753,0.7704,3313.3,3312.2,0.7619]
[1732465900102,0.7704,3313.3,3312.5,2.11319]
[1732465900284,3.01833,3313.1,3312.5,2.11319]
[1732465900483,3.01833,3313.1,3312.2,2.87527]
[1732465900484,3.01833,3313.1,3312.3,2.11329]
[1732465900692,3.01853,3312.9,3312.2,2.11335]
[1732465900896,0.7704,3312.8,3312.2,2.11335]
[1732465901261,3.789,3312.8,3312.2,2.11338]
[1732465901700,0.7704,3312.8,3312.2,2.11338]
[1732465901993,3.01878,3312.6,3311.8,2.11365]
[1732465902202,3.01878,3312.6,3312.0,2.1135]
[1732465902364,3.01877,3312.7,3312.0,2.1135]
[1732465902558,3.69954,3312.7,3311.8,2.11362]
[1732465902766,3.01879,3312.6,3312.0,2.11351]
[1732465903123,3.01887,3312.5,3311.9,2.11358]
[1732465903599,3.01877,3312.6,3312.0,2.11346]
[1732465904118,3.01889,3312.5,3311.9,2.11357]
[1732465904397,3.622656,3312.5,3311.9,2.11357]
[1732465904556,0.603766,3312.5,3311.6,5.11377]
[1732465904756,3.01907,3312.3,3311.6,5.11377]
[1732465905064,0.7709,3312.2,3311.8,2.11365]
[1732465905400,0.7709,3312.2,3312.0,2.11346]
[1732465905558,0.1,3313.9,3312.4,2.11322]
[1732465905559,0.7709,3313.8,3312.4,2.11322]
[1732465905800,0.7709,3313.5,3313.3,2.11265]
[1732465906155,0.5965867,3313.6,3313.5,2.11256]
[1732465906733,0.7709,3314.3,3313.6,2.1125]
[1732465906935,0.7709,3314.3,3313.8,2.11236]
[1732465907148,3.78813,3314.3,3313.6,2.11245]
[1732465907451,6.413585,3314.2,3313.5,2.11255]
[1732465907621,3.396185,3314.2,3313.6,2.1125]
[1732465907824,0.59441686,3313.9,3313.6,2.1125]
[1732465908205,0.59441686,3313.9,3313.4,2.11262]
[1732465908525,0.59441686,3313.9,3313.5,2.11256]
[1732465908731,0.59441686,3313.9,3313.8,2.11237]
[1732465908932,0.7709,3314.3,3314.0,2.1122]
[1732465909802,0.7709,3314.3,3313.8,2.11234]
[1732465910227,0.7709,3314.3,3313.9,2.1123]
[1732465911152,0.7709,3314.3,3312.7,2.11301]
[1732465911153,0.58919044,3314.2,3313.6,2.11246]
[1732465911441,3.60652044,3314.2,3313.4,2.11258]
[1732465911648,3.01747,3314.1,3313.4,2.11258]
[1732465911854,3.01747,3314.1,3313.5,0.301]
[1732465912009,3.01747,3314.1,3313.4,2.11258]
[1732465912214,1.02693248,3314.2,3313.5,2.11251]
[1732465912410,0.58919044,3314.2,3313.5,2.11251]
[1732465912707,3.60656044,3314.2,3313.6,2.11248]
[1732465912917,4.04430648,3314.2,3313.6,2.11248]
[1732465913281,1.02693648,3314.2,3313.1,5.11279]
[1732465913577,4.04432648,3314.2,3313.6,2.1125]
[1732465913762,0.48152265,3314.1,3313.2,2.11273]
[1732465913969,0.58919044,3314.2,3313.2,2.11273]
[1732465914277,3.01758,3314.0,3313.2,2.11273]
[1732465914575,3.01765,3313.9,3313.3,2.11267]
[1732465914740,3.01746,3314.1,3313.4,2.11262]
[1732465914943,3.01764,3313.9,3313.2,2.11273]
[1732465915139,3.6223005,3313.7,3313.2,2.11273]
[1732465915452,0.6045305,3313.7,3313.2,2.11273]
[1732465915861,0.6045305,3313.7,3313.3,2.11263]
[1732465916061,0.6045305,3313.7,3312.8,3.7783]
[1732465916380,0.6045305,3313.7,3313.6,2.1125]
[1732465916579,0.7914,3313.8,3313.5,2.1125]
[1732465916788,0.7914,3313.8,3313.7,2.11244]
[1732465917272,0.7914,3314.3,3313.7,2.11244]
[1732465917465,0.380857,3314.2,3313.7,2.11244]
[1732465918281,0.59061178,3313.8,3313.7,4.22484]
[1732465918858,0.59061178,3313.8,3313.7,2.1124]
[1732465919055,0.59061178,3313.8,3313.5,2.11254]
[1732465919289,0.59061178,3313.8,3313.5,2.11252]
[1732465919459,0.59061178,3313.8,3313.6,2.11247]
[1732465920483,0.59061178,3313.8,3313.2,2.11269]
[1732465920722,0.59061178,3313.8,3312.9,3.0]
[1732465920723,1.15222818,3313.7,3312.9,3.0]
[1732465920905,0.7914,3314.1,3313.2,2.11272]
[1732465921180,3.80835,3314.6,3313.7,2.11239]
[1732465921496,3.01737,3314.2,3313.6,2.11249]
[1732465921792,3.01764,3313.9,3313.3,2.11267]
[1732465922081,3.01757,3314.0,3313.1,2.11277]
[1732465922082,3.01775,3313.8,3313.2,3.0]
[1732465922280,3.01775,3313.8,3313.2,5.11275]
[1732465922480,0.44109753,3313.9,3313.0,0.301]
[1732465922788,3.01751,3314.0,3313.4,2.11257]
[1732465923086,1.39340527,3314.1,3313.6,2.11245]
[1732465923969,1.39340527,3314.1,3313.9,2.11227]
[1732465924283,1.39340527,3314.1,3313.7,2.11242]
[1732465924529,1.39340527,3314.1,3313.8,2.11235]
[1732465924817,1.39340527,3314.1,3313.6,2.1125]
[1732465924991,1.39340527,3314.1,3313.8,2.11232]
[1732465925186,1.39340527,3314.1,3313.9,2.1123]
[1732465925386,1.39340527,3314.1,3313.6,2.11248]
[1732465925595,1.8344728,3314.1,3313.6,2.11248]
[1732465926204,1.8344728,3314.1,3313.4,2.11261]
[1732465926205,4.8519328,3314.1,3313.5,2.11253]
[1732465926520,1.39340527,3314.1,3313.6,2.11248]
[1732465926883,4.41081527,3314.1,3313.6,2.11248]
[1732465927106,3.01755,3314.0,3313.4,2.11258]
[1732465927275,1.39340527,3314.1,3313.6,2.1125]
[1732465927593,1.39340527,3314.1,3313.5,2.11256]
[1732465927787,3.01752,3314.0,3313.4,2.11258]
[1732465928252,3.01765,3313.9,3313.1,3.0]
[1732465928421,3.01789,3313.6,3313.0,2.41388]
[1732465928593,0.7986,3313.5,3312.7,0.301]
[1732465928776,0.7986,3313.5,3312.6,2.9089]
[1732465928777,3.01831,3313.2,3312.6,2.1131]
[1732465928980,3.01848,3313.0,3312.4,0.3141674]
[1732465929294,3.01846,3313.0,3312.4,0.3141674]
[1732465929521,0.7986,3313.2,3312.2,2.11337]
[1732465929723,3.0185,3312.9,3312.3,2.11331]
[1732465930018,0.7986,3313.2,3312.6,2.11314]
[1732465930019,3.81688,3313.2,3312.6,2.11314]
[1732465930335,0.7986,3313.2,3312.6,2.11314]
[1732465930479,0.7986,3313.2,3312.7,2.11304]
[1732465931078,0.7986,3314.0,3312.7,0.7958]
[1732465931321,0.59913109,3313.6,3313.3,2.11263]
[1732465931542,0.59913109,3313.6,3313.5,2.11256]
[1732465931700,0.59913109,3313.6,3313.2,2.11273]
[1732465932195,0.59913109,3313.6,3313.0,2.11287]
[1732465932399,0.59913109,3313.6,3313.1,2.11281]
[1732465932610,0.7986,3313.3,3312.2,3.7958]
[1732465932928,0.7986,3313.3,3313.0,2.11288]
[1732465933127,0.7986,3313.3,3312.8,2.11296]
[1732465933430,0.7986,3313.3,3312.9,2.11294]
[1732465933727,0.7986,3313.3,3312.4,0.301]
[1732465934027,0.7986,3313.3,3312.8,2.11295]
[1732465934387,0.7986,3313.3,3313.0,2.11285]
[1732465934789,0.7986,3313.3,3313.0,2.11284]
[1732465935088,0.7986,3313.3,3312.8,2.11296]
[1732465935291,0.7986,3313.3,3312.6,2.11309]
[1732465935520,3.01824,3313.2,3312.6,4.22618]
[1732465935772,3.01824,3313.2,3312.4,2.41425]
[1732465935942,0.7986,3313.3,3312.2,0.7958]
[1732465935943,3.01861,3312.8,3312.2,2.11338]
[1732465936147,0.7986,3312.7,3312.2,2.11338]
[1732465936427,3.81729,3312.7,3312.1,5.11344]
[1732465936923,4.50087,3312.7,3311.9,0.7958]
[1732465937127,3.01892,3312.5,3311.8,2.1136]
[1732465937330,0.7986,3312.7,3311.8,2.11359]
[1732465937492,3.01894,3312.5,3311.9,2.11357]
[1732465939129,3.81731,3312.7,3311.9,2.11357]
[1732465939341,0.61213974,3312.4,3311.9,2.11357]
[1732465939509,0.61213974,3312.4,3312.1,2.11346]
[1732465939690,0.61213974,3312.4,3311.7,2.11367]
[1732465939889,3.63109974,3312.4,3311.9,2.11358]
[1732465940141,3.63109974,3312.4,3311.8,3.0]
[1732465940288,3.63109974,3312.4,3311.8,2.11363]
[1732465940489,3.0192,3312.2,3311.6,5.11375]
[1732465940690,3.01932,3312.0,3311.5,2.11382]
[1732465940991,0.7986,3312.1,3311.5,2.11382]
[1732465941190,0.7986,3312.1,3311.7,2.1137]
[1732465941593,0.7986,3312.1,3311.1,0.7958]
[1732465941594,3.01937,3312.0,3311.3,2.11393]
[1732465942035,3.01937,3312.0,3311.4,2.1139]
[1732465942197,3.01956,3311.8,3311.2,2.11401]
[1732465942738,3.01956,3311.8,3311.0,2.11415]
[1732465943038,3.0196,3311.7,3311.2,2.11398]
[1732465943188,3.0196,3311.7,3311.0,2.11415]
[1732465943529,3.0196,3311.7,3311.1,2.11407]
[1732465943888,3.61612986,3311.9,3310.8,0.803]
[1732465943889,0.8316,3311.5,3310.8,2.11426]
[1732465944211,0.8316,3311.5,3311.0,2.11411]
[1732465944409,0.8316,3311.5,3310.8,0.211426]
[1732465944615,0.8316,3311.5,3311.0,2.11412]
[1732465944793,3.85145,3311.5,3310.8,2.11426]
[1732465944993,3.01992,3311.4,3310.8,2.11426]
[1732465945298,3.01998,3311.3,3310.8,2.11428]
[1732465945495,3.02005,3311.2,3310.6,2.11437]
[1732465945805,0.385145,3311.4,3310.6,2.11437]
[1732465946025,3.01954,3311.8,3310.0,0.0302037]
[1732465946026,0.8316,3311.1,3310.0,0.0302037]
[1732465946333,3.02032,3310.9,3310.3,2.1146]
[1732465946497,0.8316,3311.1,3310.2,2.11466]
[1732465946498,3.8518,3311.1,3310.4,2.11454]
[1732465946699,3.02027,3311.0,3310.4,2.11454]
[1732465946900,3.02033,3310.9,3310.2,2.11466]
[1732465947134,0.8131,3310.8,3310.2,2.11466]
[1732465947345,0.8131,3310.8,3309.9,0.31433418]
[1732465947653,0.8131,3310.2,3309.9,0.31433418]
[1732465947802,3.02111,3310.1,3308.9,2.1155]
[1732465948003,3.706624,3310.1,3309.4,2.11514]
[1732465948413,0.685514,3310.1,3309.6,2.11501]
[1732465948741,0.8131,3310.2,3309.8,2.11487]
[1732465948935,0.3687185,3311.0,3309.7,0.03021349]
[1732465948936,0.8131,3310.8,3309.7,0.03021349]
[1732465949244,0.8131,3310.8,3309.8,2.11487]
[1732465949444,0.8131,3310.8,3310.6,2.11437]
[1732465949645,0.60291567,3311.2,3310.2,2.1448763]
[1732465949951,3.02015,3311.1,3310.4,2.11451]
[1732465950107,3.76582257,3311.1,3310.2,2.11467]
[1732465950302,1.23373644,3311.0,3310.5,2.11447]
[1732465950505,0.60291567,3311.2,3310.0,0.7936]
[1732465950749,3.62303567,3311.2,3310.6,2.11441]
[1732465950951,0.8131,3311.0,3310.0,0.7936]
[1732465951153,0.8131,3311.0,3310.5,2.11442]
[1732465951648,0.60291567,3311.2,3310.5,2.11442]
[1732465951855,1.04651324,3311.2,3310.5,2.11442]
[1732465952035,1.04651324,3311.2,3310.7,2.11431]
[1732465952442,4.06656324,3311.2,3310.5,2.11442]
[1732465953133,1.04651324,3311.2,3310.7,2.11433]
[1732465953506,1.04651324,3311.2,3310.6,2.11439]
[1732465953832,0.8131,3310.9,3310.1,5.11473]
[1732465954010,3.02075,3310.5,3309.8,2.11492]
[1732465954352,0.8131,3310.4,3309.6,2.11503]
[1732465954553,0.8131,3310.4,3309.5,0.03021293]
[1732465954734,0.8131,3310.4,3310.1,2.11468]
[1732465956736,0.8131,3310.4,3309.9,2.11485]
[1732465956926,0.8131,3310.4,3310.1,2.11473]
[1732465957135,3.8339,3310.4,3309.7,4.22992]
[1732465957346,3.02087,3310.3,3309.8,2.1149]
[1732465957521,1.25693707,3310.4,3309.8,2.1149]
[1732465957850,3.02093,3310.3,3309.7,2.11498]
[1732465958065,0.42776371,3310.3,3309.6,2.11505]
[1732465958403,0.8131,3310.4,3309.6,4.2301]
[1732465958559,0.8131,3310.4,3310.0,2.1148]
[1732465958760,0.8131,3310.4,3309.8,2.11492]
[1732465958962,4.27773806,3310.4,3309.8,2.11492]
[1732465959114,3.02088,3310.3,3309.6,2.11503]
[1732465959510,3.02088,3310.3,3309.7,2.11499]
[1732465959713,3.02088,3310.3,3309.6,2.11503]
[1732465959913,3.706351,3310.3,3309.7,2.11498]
[1732465960150,0.685471,3310.3,3309.7,2.11498]
[1732465960325,3.02097,3310.2,3309.7,2.11498]
[1732465960528,3.02097,3310.2,3309.5,4.23018]
[1732465960749,3.02097,3310.2,3309.3,3.0]
[1732465960928,3.02097,3310.2,3309.6,2.11501]
[1732465961127,3.404377,3310.2,3309.6,2.11501]
[1732465961358,3.02116,3310.0,3309.4,2.11518]
[1732465961562,3.02116,3310.0,3309.5,2.11511]
[1732465961877,6.425417,3310.2,3309.5,2.11511]
[1732465962152,6.425417,3310.2,3309.3,3.0]
[1732465962153,0.383407,3310.2,3309.2,0.7732]
[1732465962363,3.83391,3310.4,3309.8,2.11487]
[1732465962720,3.02088,3310.3,3309.5,2.11509]
[1732465963057,3.02088,3310.3,3309.7,2.11499]
[1732465963259,3.83391,3310.4,3309.7,2.11499]
[1732465963464,3.021,3310.2,3309.7,2.11499]
[1732465963678,3.02114,3310.0,3309.5,2.11509]
[1732465963874,3.021,3310.2,3309.5,2.11507]
[1732465964025,0.4217491,3310.2,3309.3,3.0]
[1732465964226,3.02089,3310.3,3309.7,2.11493]
[1732465964750,0.8131,3310.4,3309.4,2.11518]
[1732465964952,3.83389,3310.4,3309.9,2.11485]
[1732465965167,0.8131,3310.4,3310.2,2.11467]
[1732465965469,0.8212,3310.8,3310.3,2.11456]
[1732465966244,0.8212,3310.8,3310.1,2.1147]
[1732465966544,0.8212,3310.8,3310.3,2.11457]
[1732465966846,0.8212,3310.8,3310.7,2.11435]
[1732465967055,0.8212,3310.8,3310.4,2.1145]
[1732465967289,0.8212,3310.8,3310.0,2.703507]
[1732465967494,0.8212,3310.8,3310.6,2.1144]
[1732465967986,0.0069318,3558.0,3310.7,2.11435]
[1732465967987,0.8208,3311.1,3310.7,2.11435]
[1732465968293,0.8208,3311.1,3311.0,2.11416]
[1732465968507,3.0197,3311.6,3311.0,2.11416]
[1732465968654,0.8208,3311.4,3311.0,2.11416]
[1732465969947,1.40983373,3311.4,3311.0,2.11416]
[1732465970590,1.40983373,3311.4,3311.0,4.22827]
[1732465970898,1.40983373,3311.4,3311.0,2.11411]
[1732465971199,0.58903373,3311.4,3311.3,2.11397]